[Event "Austrian Women Bundesliga 2023-24"]
[Site "Austria"]
[Date "2024.04.12"]
[Round "7"]
[White "Wu, Min"]
[Black "Mihelic, Vesna"]
[Result "0-1"]
[ECO "C47"]
[WhiteElo "1938"]
[BlackElo "2140"]
[Annotator "TA"]
[PlyCount "158"]
[EventDate "2023.11.21"]
[EventType "team-tourn"]
[EventCountry "AUT"]
[SourceTitle "playchess.com"]
[Source "ChessBase"]
[SourceQuality "1"]
[TimeControl "40/5400+30:1800+30"]

{[%evp 38,158,0,-22,-14,-80,-85,-75,-96,-88,-86,-203,-123,-131,-133,-128,-127,-124,-128,-121,-125,-146,-142,-152,-122,-126,-116,-149,-143,-160,-156,-171,-147,-185,-160,-185,-185,-180,-185,-169,-180,-165,-118,-114,0,-167,0,-147,-122,-112,-84,-83,-83,-89,-69,-87,-87,-77,-90,-77,-70,-83,-8,-8,0,0,0,0,0,0,0,0,0,0,0,-8,-8,-8,-8,-70,-63,-63,-63,-63,-63,-63,-63,-63,-70,-70,-70,-70,-70,-335,-329,-1000,-989,-29978,-5750,-1034,-156,-163,-234,-340,-260,-980,-575,-29986,-29987,-29987,-29988,-29988,-29989,-29989,-29990,-29992,-29993,-29994,-29988,-29988,-29989,-29995,-29990]} 1. e4 {[%emt 0:00:03]} e5 {[%emt 0:00:05]} 2. Nf3 {[%emt 0:00:06]} Nc6 {[%emt 0:00:05]} 3. Nc3 {[%emt 0:00:53]} Nf6 {[%emt 0:00:08]} 4. d4 {[%emt 0:00:05]} exd4 {[%emt 0:00:08]} 5. Nxd4 {[%emt 0:00:05]} Bb4 {[%emt 0:00:09]} 6. Nxc6 {[%emt 0:00:15]} bxc6 {[%emt 0:00:07]} 7. Bd3 {[%emt 0:00:03]} d5 {[%emt 0:00:09]} 8. exd5 {[%emt 0:00:06]} cxd5 {[%emt 0:00:05]} 9. O-O {[%emt 0:00:06]} O-O {[%emt 0:00:06]} 10. h3 {[%emt 0:00:04] C47: Scotch Four Knights and Four Knights with 4 g3.} Be6 {[%emt 0:05:23]} 11. Qf3 {[%emt 0:02:11]} Rb8 {[%emt 0:04:11]} 12. Ne2 {[%emt 0:09:20]} Bd6 {[%emt 0:12:51]} 13. Nd4 {[%emt 0:15:27]} Qd7 $146 {[%emt 0:03:26]} ({Predecessor:} 13... Rb6 14. Nxe6 fxe6 15. c4 c6 16. Qe2 e5 17. Be3 Rb7 18. Rad1 e4 19. Bb1 Bb8 20. cxd5 cxd5 {0-1 Mastrovasilis,D (2604)-Aronian,L (2773) Online Olym KO Stage rapid 2020 (1.1)}) 14. c3 {[%emt 0:11:32]} c5 {[%emt 0:03:30]} 15. Nf5 {[%emt 0:01:40]} Bxf5 {[%emt 0:02:31]} 16. Bxf5 {[%emt 0:01:01]} Qc6 {[%emt 0:05:30]} 17. Rd1 {[%emt 0:18:14]} Be5 {[%emt 0:10:15]} 18. Rb1 {[%emt 0:06:09]} Qa4 {[%emt 0:04:02]} 19. a3 {[%emt 0:05:04]} g6 {[%emt 0:08:18]} 20. Bd3 {[%emt 0:04:44]} c4 {[%emt 0:13:07]} 21. Bg5 {[%emt 0:04:53]} (21. Bf4 Bxf4 22. Qxf4 Rxb2 23. Qxf6 (23. Bxc4 $2 Nh5 $19) 23... cxd3 $17) (21. Bf1 $11 {keeps the balance.}) 21... cxd3 $17 {[%emt 0:01:53]} 22. Bxf6 {[%emt 0:01:28]} Bxf6 {[%emt 0:00:26]} 23. Qxf6 {[%emt 0:00:10]} Rxb2 $1 {[%emt 0:00:52]} 24. Ra1 {[%emt 0:05:52]} (24. Qf3 $17 Rxb1 (24... Qxa3 25. Rxb2 Qxb2 26. Rxd3 $11) 25. Rxb1) 24... Qc4 {[%emt 0:09:54]} 25. Qf3 {[%emt 0:05:03]} d2 {[%emt 0:04:00]} (25... Qxc3 $6 26. Rxd3 Qc8 27. Rad1 $11 (27. Qxd5 Re8 $11) (27. Rxd5 Rd8 $11)) 26. Qe3 {[%emt 0:00:18]} Rc8 {[%emt 0:00:42]} 27. Rxd2 {[%emt 0:01:19]} Rxd2 {[%emt 0:00:08]} (27... Qxc3 $2 28. Qxc3 (28. Rxd5 Qxe3 29. fxe3 Rcc2 $17) 28... Rxc3 29. Rxb2 $18) 28. Qxd2 {[%emt 0:00:05]} Qxc3 {[%emt 0:00:14]} 29. Qxc3 {[%emt 0:01:35]} Rxc3 {[%emt 0:00:02]} 30. Rd1 {[%emt 0:00:05]} Rc5 {[%emt 0:06:26]} 31. Kf1 {[%emt 0:04:06]} Kf8 {[%emt 0:00:27]} 32. Rb1 {[%emt 0:00:39]} Ra5 {[%emt 0:00:22]} 33. Rb3 {[%emt 0:00:17]} Ke7 {[%emt 0:00:21]} 34. Ke2 {[%emt 0:00:37]} Ke6 {[%emt 0:00:47]} 35. Ke3 {[%emt 0:01:24]} Ra4 {[%emt 0:01:25]} 36. g3 {[%emt 0:00:52]} g5 {[%emt 0:01:28]} 37. Kd2 {[%emt 0:01:19]} h6 {[%emt 0:01:58]} 38. Re3+ {[%emt 0:00:37]} Re4 {[%emt 0:00:58]} 39. Rc3 {[%emt 0:00:23]} Rc4 {[%emt 0:00:57]} (39... Rd4+ $19 40. Ke2 Rc4) 40. Re3+ $17 {[%emt 0:00:45]} Re4 {[%emt 0:02:07]} (40... Kf6 $17 41. Rf3+ Kg6) 41. Rc3 $1 $19 {[%emt 0:31:10]} Ra4 {[%emt 0:30:15]} 42. Re3+ $1 {[%emt 0:00:00]} Kd6 {[%emt 0:00:00]} 43. Rf3 {[%emt 0:00:00]} Ke5 {[%emt 0:00:00]} 44. Rxf7 {[%emt 0:00:00]} Rxa3 {[%emt 0:00:00]} 45. Rh7 {[%emt 0:00:00]} Ra2+ {[%emt 0:00:00]} 46. Ke3 {[%emt 0:00:00]} d4+ {[%emt 0:00:00]} 47. Kf3 {[%emt 0:00:00]} Ra3+ {[%emt 0:00:00]} 48. Ke2 {[%emt 0:00:00]} a5 {[%emt 0:00:00]} 49. Rxh6 {[%emt 0:00:00]} a4 {[%emt 0:00:00]} (49... Ra2+ $17 50. Kf3 a4) 50. h4 $11 {[%emt 0:00:00]} gxh4 {[%emt 0:00:00]} 51. gxh4 {[%emt 0:00:00]} Ke4 {[%emt 0:00:00]} 52. Re6+ {[%emt 0:00:00]} Kd5 {[%emt 0:00:00]} 53. Ra6 {[%emt 0:00:00]} Kc4 {[%emt 0:00:00]} 54. h5 {[%emt 0:00:00]} Kb5 {[%emt 0:00:19]} 55. Ra8 {[%emt 0:02:51]} Rh3 {[%emt 0:00:15]} 56. Rb8+ {[%emt 0:00:59]} Kc4 {[%emt 0:00:39]} 57. Ra8 {[%emt 0:00:17]} Kb3 {[%emt 0:02:32]} (57... Kc3 $5 58. Rc8+ $8 Kb2 59. Rb8+ Kc2 60. Rc8+ Kb1 $15) 58. Rb8+ {[%emt 0:00:05]} (58. f3 $1 $11) 58... Kc2 $15 {[%emt 0:00:54]} 59. Rc8+ {[%emt 0:00:47]} Rc3 {[%emt 0:04:00]} 60. Rxc3+ {[%emt 0:00:18]} dxc3 {[%emt 0:00:30]} (60... Kxc3 $5 61. h6 $8 Kc2 $11) 61. h6 {[%emt 0:00:11]} Kb1 {[%emt 0:00:14]} 62. h7 {[%emt 0:00:29]} c2 {[%emt 0:00:02]} 63. h8=Q {[%emt 0:00:05]} c1=Q {[%emt 0:00:04]} (63... c1=R 64. Qb8+ Kc2 65. Qb4 Rg1 66. Qc4+ (66. Qxa4+ Kc3 $18) 66... Kb2 67. Qb4+ (67. Qxa4 Kc3 $18) 67... Kc2 68. Qxa4+ Kc3 69. Qe4) 64. Kf3 {[%emt 0:02:44]} a3 {[%emt 0:01:49]} 65. Qh7+ $2 {[%emt 0:00:36][%mdl 8192]} (65. Qe8 $15) 65... Qc2 $19 {[%emt 0:00:13]} 66. Qb7+ {[%emt 0:00:25]} Kc1 {[%emt 0:00:17]} 67. Kg3 {[%emt 0:03:05]} a2 {[%emt 0:00:19]} (67... Qc3+ $142 68. Kh4 a2 69. Qh1+ Kc2 70. Qe4+ Kb3 71. Kh5 a1=Q (71... a1=B 72. Kg4 $11) 72. Qe6+ Kc2 73. Qe2+ Kc1 74. Qf1+ Kd2 75. Qxa1 Qxa1 76. Kg6 Qe5 (76... Qg1+ {gets mated.} 77. Kf7 Qxf2+ 78. Ke6 Qd4 79. Kf7 Kd3 80. Ke7 Ke4 81. Kf7 Qd6 82. Kg7 Kf5 83. Kh7 Qd7+ 84. Kh6 Kf6 85. Kh5 Qh3#) 77. Kf7 Qd6 (77... Qf4+ 78. Ke8 Qxf2 79. Ke7 Kd3 80. Ke6 Kd4 81. Kd7 Qf6 82. Ke8 Kd5 83. Kd7 Qg7+ 84. Kd8 Kd6 85. Ke8 Qg8#) 78. Ke8 Kd3 79. f3 Ke3 80. f4 Kxf4 (80... Qxf4 81. Kd7 Kd4 82. Kc6 Qf6+ 83. Kd7 Kc5 84. Ke8 Qg7 85. Kd8 Kd6 86. Ke8 Qg8#) 81. Kf7 Kf5 82. Ke8 Qc7 83. Kf8 Kf6 84. Kg8 Qg7#) 68. Qg7 $19 {[%emt 0:00:46]} Kd2 $2 {[%emt 0:01:55]} (68... Qd3+ $19 {is more deadly.} 69. Kg2 Qe4+ 70. Kh2 Kb1 71. Qg1+ Kc2) 69. Qh6+ $17 {[%emt 0:00:21]} Kd3 {[%emt 0:00:32]} 70. Qh7+ {[%emt 0:00:16] [#]} (70. Qe3+ $142 Kc4 71. Qe6+ Kb5 72. Qe5+ Kc4 73. Qe6+ Kb5 74. Qe5+ Kb4 75. Qb8+ Ka3 76. Qe5) 70... Kc3 $1 $19 {[%emt 0:00:17]} 71. Qg7+ $2 {[%emt 0:00:43]} (71. Qh8+ Kb3 72. Qb8+ Kc3 73. Qe5+ Kd2 74. Qe3+ Kd1 75. Qf3+ Kc1 (75... Ke1 76. Qh1+ Kd2 77. Qh6+ Kc3 78. Qh8+ Kc4 79. Qg8+ Kc3 80. Qh8+ $17) 76. Qa3+ Qb2 77. Qe3+ Qd2 78. Qe5 Qd3+ 79. Kg2) 71... Kb3 {[%emt 0:00:20]} 72. Qf7+ {[%emt 0:00:31]} Qc4 {[%emt 0:00:21]} 73. Qb7+ {[%emt 0:00:29]} Kc2 {[%emt 0:00:09]} 74. Qh1 {[%emt 0:00:53]} Qc3+ {[%emt 0:00:12]} 75. f3 {[%emt 0:00:24]} a1=Q {[%emt 0:00:06]} ({Weaker is} 75... a1=B 76. Qh7+ Kb2 77. Qe7 $11) 76. Qh7+ {[%emt 0:00:17]} Qd3 {[%emt 0:00:13]} 77. Qh2+ {[%emt 0:00:12]} Qd2 {[%emt 0:00:08]} 78. Qh7+ {[%emt 0:00:07]} Kd1 {[%emt 0:00:16]} 79. Qe4 {[%emt 0:00:36]} Qe1+ {[%emt 0:00:11]} 0-1

[Event "Austrian Women Bundesliga 2023-24"]
[Site "Austria"]
[Date "2024.04.12"]
[Round "7"]
[White "Katter, Katharina"]
[Black "Heinatz, Gundula"]
[Result "1/2-1/2"]
[ECO "D25"]
[WhiteElo "1932"]
[BlackElo "2116"]
[Annotator "TA"]
[PlyCount "113"]
[EventDate "2023.11.21"]
[EventType "team-tourn"]
[EventCountry "AUT"]
[SourceTitle "playchess.com"]
[Source "ChessBase"]
[SourceQuality "1"]
[TimeControl "40/5400+30:1800+30"]

{[%evp 9,113,22,32,28,34,6,147,121,189,129,133,130,119,131,122,152,136,131,146,106,140,154,194,177,164,186,175,161,174,71,74,-129,-132,-137,-145,-125,-135,-139,-104,-121,-97,-87,-68,-172,-205,-214,-91,-87,-67,-70,-72,-50,-50,-93,-67,-252,-258,-399,-405,-405,-405,-372,-358,-358,-358,-351,-343,-333,-313,-298,-316,-247,-10,-10,-10,-16,-20,-47,-35,-24,-8,-8,-8,-8,-8,-8,-8,-8,-8,-8,-8,-8,0,0,0,0,0,0,0,0,0,-8,-8,-8,-8,-8]} 1. d4 {[%emt 0:00:04]} Nf6 {[%emt 0:00:10]} 2. Nf3 {[%emt 0:00:11]} d5 {[%emt 0:00:04]} 3. c4 {[%emt 0:00:20]} dxc4 {[%emt 0:00:14]} 4. e3 {[%emt 0:01:20]} c5 {[%emt 0:00:27]} 5. Bxc4 {[%emt 0:00:29]} cxd4 {[%emt 0:00:22]} 6. exd4 {[%emt 0:02:06]} g6 {[%emt 0:01:01]} 7. Qa4+ {[%emt 0:10:36]} Nbd7 {[%emt 0:07:48]} (7... Bd7 $11 {remains equal.} 8. Qb3 e6) 8. O-O {[%emt 0:10:52] White is clearly better.} e6 {[%emt 0:06:16]} (8... h6 $16) 9. Re1 {[%emt 0:03:13]} (9. d5 $18 e5 10. Nc3 (10. Nxe5 Bd6 $16)) 9... Bg7 {[%emt 0:02:43]} 10. d5 {[%emt 0:05:51]} O-O {[%emt 0:00:09]} 11. dxe6 {[%emt 0:00:40]} fxe6 {[%emt 0:05:02]} 12. Bxe6+ {[%emt 0:01:37]} Kh8 {[%emt 0:00:03]} 13. Qh4 {[%emt 0:04:42] White has more active pieces.} Nc5 {[%emt 0:08:05]} 14. Bxc8 {[%emt 0:01:34]} Rxc8 {[%emt 0:00:09]} 15. Nc3 $1 {[%emt 0:02:42]} Qd7 {[%emt 0:16:12]} 16. Ne5 {[%emt 0:15:37] Repels Qg4} Qf5 {[%emt 0:06:40][%cal Of6e4]} 17. g4 $1 {[%emt 0:13:54]} Nxg4 {[%emt 0:00:16]} 18. Nxg4 {[%emt 0:00:05] Strongly threatening Bh6.} Nd3 {[%emt 0:00:36]} 19. Rf1 {[%emt 0:07:59]} (19. Rd1 $18 {has better winning chances.}) 19... Rc4 $16 {[%emt 0:01:28] [#]} 20. f4 $2 {[%emt 0:09:43]} Nxc1 $1 $17 {[%emt 0:07:50]} 21. Raxc1 {[%emt 0:00:18]} Rxf4 {[%emt 0:00:27]} 22. Ne3 {[%emt 0:06:59]} ({Wrong is} 22. Rxf4 $2 Qxf4 23. Ne2 Bd4+ 24. Nxd4 Qxc1+ 25. Kg2 Qf1+ (25... Qxb2+ $2 26. Nf2 $19) 26. Kg3 Qd3+ 27. Kg2 Qxd4 $19) 22... Rxh4 {[%emt 0:04:42]} 23. Nxf5 {[%emt 0:00:12]} gxf5 {[%emt 0:00:09]} 24. Rcd1 {[%emt 0:00:52]} f4 {[%emt 0:03:22] ...f3 would now be deadly.} 25. Rf3 {[%emt 0:00:32]} Be5 {[%emt 0:04:57] And now ...Rg8+ would win.} 26. Rd7 {[%emt 0:00:29]} (26. Rd5 $15 Bb8 27. h3) 26... Rg8+ $19 {[%emt 0:01:01]} 27. Kh1 {[%emt 0:00:00] [#]} Rhg4 {[%emt 0:02:15]} (27... Rg3 $1 $19 {[%cal Rg3f3] and Black stays clearly on top.} 28. Rdd3 Rhh3 29. Rd8+ Kg7) 28. Ne2 $17 {[%emt 0:00:36]} Bxb2 {[%emt 0:06:05]} 29. Rxf4 {[%emt 0:00:25]} Rxf4 {[%emt 0:03:39]} 30. Nxf4 {[%emt 0:00:01][%mdl 4096] Endgame. KRB-KRN} b5 {[%emt 0:01:01]} 31. Nd3 {[%emt 0:01:08]} Bf6 {[%emt 0:00:43]} 32. h3 $2 {[%emt 0:00:49]} (32. Rxa7 $2 {is the wrong capture.} Bd4 33. h4 Bxa7 $19) (32. Rb7 $15) 32... Rd8 $19 {[%emt 0:00:33]} 33. Nc5 {[%emt 0:00:33]} (33. Rxd8+ $142 Bxd8 34. Nc5) 33... Rxd7 {[%emt 0:00:28]} 34. Nxd7 {[%emt 0:00:06] KB-KN} Kg7 {[%emt 0:01:56]} 35. Kg2 {[%emt 0:00:16]} Bd4 {[%emt 0:00:16]} 36. Kf3 {[%emt 0:00:20]} Kg6 {[%emt 0:01:43]} 37. Nf8+ {[%emt 0:00:33] [#]} Kh6 $1 {[%emt 0:00:51]} 38. Ke4 {[%emt 0:00:51]} Bf2 {[%emt 0:00:44]} 39. Kf3 {[%emt 0:00:50]} Bg1 {[%emt 0:01:17]} 40. Ke4 {[%emt 0:00:32]} Kg7 $2 {[%emt 0:03:56]} ({Black should play} 40... a5 $19 {White must now prevent ...b4.} 41. Nd7 Kh5 42. Nf6+ Kg6) 41. Ne6+ $11 {[%emt 0:00:54]} Kg6 {[%emt 0:03:33] ...a5 is the strong threat.} 42. Nc7 $1 {[%emt 0:00:21]} Kg5 {[%emt 0:01:05]} 43. Kf3 {[%emt 0:00:33]} Kh4 {[%emt 0:02:33]} 44. Kg2 {[%emt 0:00:19]} Bb6 {[%emt 0:00:11]} 45. Nxb5 {[%emt 0:00:10] The position is equal.} a6 {[%emt 0:00:06]} 46. Nc3 {[%emt 0:03:40]} Kg5 {[%emt 0:00:11]} 47. Nd5 {[%emt 0:01:32]} Ba5 {[%emt 0:02:34]} 48. Kf3 {[%emt 0:00:55]} Kf5 {[%emt 0:00:21]} 49. Ne7+ {[%emt 0:00:18]} Ke6 {[%emt 0:01:13]} 50. Nc6 {[%emt 0:00:17]} Bc7 {[%emt 0:03:25]} 51. Ke4 {[%emt 0:07:41]} Kd6 {[%emt 0:01:25]} 52. Nb4 {[%emt 0:00:07]} a5 {[%emt 0:00:16]} 53. Nd3 {[%emt 0:01:38]} Kc6 {[%emt 0:02:28]} 54. a4 {[%emt 0:00:26]} Bg3 {[%emt 0:05:18]} 55. Nc1 {[%emt 0:01:23]} Kc5 {[%emt 0:00:18] next ...Kb4 is good for Black.} 56. Nb3+ {[%emt 0:00:03]} Kb4 {[%emt 0:00:04]} 57. Nxa5 $1 {[%emt 0:00:04] Black had all chances to win.   Weighted Error Value: White=0.29 (precise) /Black=0.21 (precise) .  Loses game:     	White=1     	---        Missed win:     	---       	Black=1      Mistake:       	White=5     	Black=3      Inaccurate:     	White=3     	Black=1      OK:         	White=18    	Black=13     Best:        	White=4     	Black=8      Strong:       	White=4     	Black=2} 1/2-1/2

[Event "Austrian Women Bundesliga 2023-24"]
[Site "Austria"]
[Date "2024.04.12"]
[Round "7"]
[White "Anker, Christin"]
[Black "Krassnitzer, Julia"]
[Result "0-1"]
[ECO "B01"]
[WhiteElo "1914"]
[BlackElo "1875"]
[Annotator "TA"]
[PlyCount "58"]
[EventDate "2023.11.21"]
[EventType "team-tourn"]
[EventCountry "AUT"]
[SourceTitle "playchess.com"]
[Source "ChessBase"]
[SourceQuality "1"]
[TimeControl "40/5400+30:1800+30"]

{[%evp 9,57,-56,-52,-78,-60,-60,-48,-105,-105,-101,-91,-148,-145,-142,-61,-41,-41,-34,44,0,-12,-16,43,-51,10,-34,6,-170,-165,-215,-160,-420,-392,-674,-616,-645,-672,-656,-623,-29990,-29991,-29991,-29992,-29994,-29990,-29997,-29997,-29998,-29999,-29999]} 1. e4 {[%emt 0:00:03]} d5 {[%emt 0:00:05]} 2. exd5 {[%emt 0:00:13]} Nf6 {[%emt 0:00:06]} 3. d4 {[%emt 0:00:15]} Nxd5 {[%emt 0:00:05]} 4. c4 {[%emt 0:00:44]} Nb6 {[%emt 0:00:05]} 5. b3 {[%emt 0:03:10] [#]} e5 $1 {[%emt 0:06:19]} 6. dxe5 {[%emt 0:00:59]} Qxd1+ {[%emt 0:00:07]} (6... Bb4+ {looks sharper.} 7. Bd2 Qd4 8. Bxb4 Qxa1 9. Bc3 Qxa2 10. Bd3 Nc6) 7. Kxd1 {[%emt 0:00:16]} Nc6 {[%emt 0:00:47][%cal Oc8f5]} 8. Bb2 {[%emt 0:04:23]} (8. f4 $15) 8... Bf5 $17 {[%emt 0:02:18][%mdl 1024] Black has strong compensation.} 9. Nf3 {[%emt 0:11:02]} O-O-O+ {[%emt 0:03:23]} 10. Ke1 {[%emt 0:09:28]} (10. Kc1 $142) 10... Nb4 {[%emt 0:09:43] Black has more active pieces.} 11. Na3 {[%emt 0:00:49]} Nd3+ {[%emt 0:09:52]} (11... Nd7 $17 {...Nc5 would now be deadly.} 12. Rd1 Nxa2) 12. Bxd3 $15 {[%emt 0:03:14]} Bxd3 {[%emt 0:00:18]} 13. Nb5 {[%emt 0:09:09][%cal Oa1d1]} Bc5 {[%emt 0:09:12]} (13... a6 $15 14. Nbd4 Bb4+ 15. Kd1 Rhe8) 14. Nxa7+ {[%emt 0:04:30]} ({White should play} 14. Rd1 $14) 14... Kb8 $11 {[%emt 0:00:43] [#] ...Bb4+ is the strong threat.} 15. Nb5 {[%emt 0:00:14]} Rhe8 {[%emt 0:02:14]} (15... Nd5 $1 $11) 16. h4 {[%emt 0:15:20]} (16. Rd1 $14) 16... f6 {[%emt 0:01:40]} ({Black should try} 16... Nd5 $15 17. Bd4 Bb4+ 18. Kd1 Nf4) 17. Rh3 {[%emt 0:06:17]} (17. Bd4 {simplifies} Bf8 18. Rd1 fxe5 19. Rxd3 exd4+ 20. Kd2) 17... fxe5 {[%emt 0:01:19] Strongly threatening ...e4.} (17... Nd5 {simplifies} 18. cxd5 Bxb5 19. a3 Rxd5 20. b4 Ba7) 18. a3 $2 {[%emt 0:17:37] Now White is beyond hope.} (18. Ba3 $11 {and White stays safe.} Bxa3 (18... e4 19. Ng1 $16) 19. Nxa3) 18... e4 $19 {[%emt 0:03:27]} 19. Ng5 {[%emt 0:04:55]} (19. Ne5 $142) 19... c6 {[%emt 0:10:26]} 20. Bxg7 $2 {[%emt 0:03:29]} (20. Nf7 $17 cxb5 21. Nxd8 Rxd8 22. cxb5) 20... cxb5 {[%emt 0:01:24]} 21. Nxh7 $2 {[%emt 0:00:12]} (21. b4 Bd4 22. Bxd4 Rxd4 23. cxb5) 21... Rd7 {[%emt 0:04:14]} 22. Nf6 {[%emt 0:01:02]} Rxg7 {[%emt 0:00:14]} 23. Nxe8 {[%emt 0:00:07]} Rxg2 {[%emt 0:00:19]} 24. Rh1 {[%emt 0:02:44]} Bxf2+ {[%emt 0:03:02] This pair of bishops is nice. Black mates.} 25. Kd1 {[%emt 0:00:08]} bxc4 {[%emt 0:01:39]} 26. bxc4 {[%emt 0:00:34]} Nxc4 {[%emt 0:02:06]} 27. h5 {[%emt 0:00:24]} Bd4 {[%emt 0:02:34]} 28. Rc1 {[%emt 0:00:37]} Rd2+ {[%emt 0:00:10]} 29. Ke1 {[%emt 0:00:13]} Bf2# {[%emt 0:00:14] Weighted Error Value: White=0.81/Black=0.22 (precise) .  Loses game:     	White=2     	---        Mistake:       	White=6     	Black=4      Inaccurate:     	White=1     	Black=1      OK:         	White=3     	Black=4      Best:        	White=2     	Black=2} 0-1

[Event "Austrian Women Bundesliga 2023-24"]
[Site "Austria"]
[Date "2024.04.12"]
[Round "7"]
[White "Marinovic, Sara"]
[Black "Zatonskih, Anna"]
[Result "0-1"]
[ECO "C11"]
[WhiteElo "1776"]
[BlackElo "2342"]
[Annotator "RC"]
[PlyCount "66"]
[EventDate "2023.11.21"]
[EventType "team-tourn"]
[EventCountry "AUT"]
[SourceTitle "playchess.com"]
[Source "ChessBase"]
[SourceQuality "1"]
[TimeControl "40/5400+30:1800+30"]

1. e4 {[%emt 0:00:05]} e6 {[%emt 0:00:06]} 2. d4 {[%emt 0:00:07]} d5 {[%emt 0:00:03]} 3. Nc3 {[%emt 0:00:09]} Nf6 {[%emt 0:01:16]} 4. e5 {[%emt 0:00:10]} Nfd7 {[%emt 0:00:04]} 5. f4 {[%emt 0:00:08]} c5 {[%emt 0:00:17]} 6. Nf3 {[%emt 0:00:09]} Nc6 {[%emt 0:00:21]} 7. Be3 {[%emt 0:00:11]} a6 {[%emt 0:00:29]} 8. Qd2 {[%emt 0:00:42]} b5 {[%emt 0:00:41]} 9. dxc5 {[%emt 0:00:12]} Bxc5 {[%emt 0:00:45]} 10. Bxc5 {[%emt 0:06:41]} Nxc5 {[%emt 0:00:16]} 11. Qf2 {[%emt 0:05:04]} Qb6 {[%emt 0:02:27]} 12. Be2 {[%emt 0:10:07]} b4 {[%emt 0:06:29]} 13. Nb1 {[%emt 0:00:28]} a5 {[%emt 0:05:56]} 14. Nbd2 {[%emt 0:04:53]} a4 {[%emt 0:02:58]} 15. O-O {[%emt 0:03:02]} O-O {[%emt 0:03:37]} 16. Kh1 {[%emt 0:04:01]} Ba6 {[%emt 0:07:10]} 17. Bxa6 {[%emt 0:00:51]} Rxa6 {[%emt 0:00:01]} 18. Ng5 {[%emt 0:18:49]} h6 {[%emt 0:06:43]} 19. Nh3 {[%emt 0:02:36]} Ne7 {[%emt 0:04:32]} 20. g4 {[%emt 0:05:50]} Ne4 {[%emt 0:27:15]} 21. Nxe4 {[%emt 0:04:05]} dxe4 {[%emt 0:00:01]} 22. Qe2 {[%emt 0:15:01]} Qb7 {[%emt 0:02:24]} 23. f5 {[%emt 0:01:57]} e3+ {[%emt 0:02:35]} 24. Kg1 {[%emt 0:00:05]} exf5 {[%emt 0:00:12]} 25. gxf5 {[%emt 0:00:08]} Nxf5 {[%emt 0:01:10]} 26. Rxf5 {[%emt 0:03:27]} Rg6+ {[%emt 0:00:06]} 27. Ng5 {[%emt 0:00:05]} Qe4 {[%emt 0:05:00]} 28. Rf3 {[%emt 0:03:17]} Rxg5+ {[%emt 0:00:15]} 29. Kh1 {[%emt 0:00:06]} Rxe5 {[%emt 0:00:45]} 30. Rg1 {[%emt 0:01:22]} Rd8 {[%emt 0:05:12]} 31. Rgg3 {[%emt 0:02:32]} Rd2 {[%emt 0:02:50]} 32. Qe1 {[%emt 0:00:07]} e2 {[%emt 0:02:33]} 33. Qxd2 {[%emt 0:00:12]} e1=Q+ {[%emt 0:00:06]} 0-1